Cogmind - Beta 10.2 @@@ ROGUE MODE // 2020.11.01 @ 00:00:13 // Halloween2020/ForbiddenLore Player: Trione Result: Destroyed by Combat Programmer with EMDS Performance ------------- Evolutions (7) 3500 Regions Visited (28) 5600 Robots Destroyed (431) 2155 Value Destroyed (23208) 23208 Prototype IDs (65) 1300 Alien Tech Used (7) 1400 Bonus (31441) 31441 TOTAL SCORE: 68604 Bonus ------- High Alert Combat Kills 7314 Follower Combat Kills 2833 Network Hubs Disabled 400 Met Data Miner 300 Met Zhirov 300 Met Warlord at Base 500 MAIN.C Attacked Warlord 500 Warlord Defense Kill 16476 Built Enhanced Grunts 300 A7 Reached Mainframe 300 Met R17 at Cetus 500 Met R17 at Research 2000 Scanned by Researcher 500 Pursued by Intercept 500 Friendly Fire -1282 Cogmind --------- Core Integrity 0/1300 Matter 363/700 Energy 100/100 System Corruption 36% Temperature Cool (359) Movement Core (500) Ox9 Location -3/Section 7 Parts ------- > --- POWER (2) -------- (None) > --- PROPULSION (8) --- (None) > --- UTILITY (4) ------ Large Storage Unit Advanced Matter Compressor Experimental Targeting Computer > --- WEAPON (7) ------- Advanced Micro-nuke Launcher > --- INVENTORY (10) --- Light Particle Reactor Experimental Energy Well (1000) Advanced Matter Compressor (347) Advanced Thermal Defense Suite Core Reset Matrix Subatomic Replicator Lance Peak State ------------ > --- POWER ------------ Particle Reactor Improved Quantum Reactor > --- PROPULSION ------- Advanced Heavy Treads Biometal Leg Enhanced Biometal Leg Enhanced Biometal Leg High-density Centrium Leg High-density Centrium Leg > --- UTILITY ---------- Large Storage Unit Large Storage Unit Experimental Optical Array Experimental Targeting Computer > --- WEAPON ----------- Gamma Rifle Gamma Rifle Heavy Quantum Rifle Helical Railgun Multirail Sigix Terminator > --- INVENTORY -------- Particle Reactor Experimental Heat Sink Experimental Cooling System Experimental Energy Well Advanced Matter Compressor Advanced Matter Compressor Improved Remote Force Field Long-range Tractor Beam Assault Drone Bay Transdimensional Reconstructor Core Reset Matrix Subatomic Replicator Heavy Autocannon Advanced Micro-nuke Launcher [Rating: 190] Favorites ----------- Power Cooled Deuterium Engine Engine Cooled Deuterium Engine Power Core Micro Fission Core Reactor Improved Quantum Reactor Propulsion Enhanced Biometal Leg Treads Improved Medium Treads Leg Enhanced Biometal Leg Wheel Armored Huge Wheel Hover Unit Combat Gravmag System Utility Large Storage Unit Device Improved Cooling System Storage Large Storage Unit Processor Experimental Targeting Computer Hackware Hacking Suite Protection Layered Medium Armor Plating Artifact Matter Drive Weapon Helical Railgun Energy Gun Heavy Particle Gun Energy Cannon Cooled Phase Cannon Ballistic Gun Helical Railgun Ballistic Cannon Mass Driver Launcher Tesla Bomb Launcher Impact Weapon Shock Maul Slashing Weapon Phasing Sabre Piercing Weapon Lance Build | -11 -10 -10 -10 -9 -8 -7 -7 -7 -7 -6 -6 -6 -6 -6 -6 -5 -5 -5 -5 -4 -4 -4 -4 -4 -3 -3 -3 -3 ------- Run | Scr Mat Min Exi Min Mat Fac Low Low Dat Pro Fac Ext Cet Arc Hub Fac Upp Upp Zhi Pro Fac Upp Upp War Pro Res Qua Sec Slots Evolved 14 | . . . . . 4 2 . . . . 2 . . . . 2 . . . . 2 . . . . 2 . . Power 1 | . . . . . . . . . . . 1 . . . . . . . . . . . . . . . . . Propulsion 6 | . . . . . . 1 . . . . . . . . . 1 . . . . 2 . . . . 2 . . Utility 2 | . . . . . 2 . . . . . . . . . . . . . . . . . . . . . . . Weapon 5 | . . . . . 2 1 . . . . 1 . . . . 1 . . . . . . . . . . . . Parts Attached 495 | 6 4 . . 4 40 8 13 4 . 5 7 22 12 2 22 40 8 7 19 13 53 9 6 86 9 15 38 43 Power 47 | 1 1 . . . 4 1 1 . . . 1 1 2 . 3 3 2 1 . . 6 . . 8 . 1 5 6 Engine 10 | 1 1 . . . 3 1 1 . . . 1 1 1 . . . . . . . . . . . . . . . Core 10 | . . . . . 1 . . . . . . . . . . 3 2 1 . . 2 . . 1 . . . . Reactor 27 | . . . . . . . . . . . . . 1 . 3 . . . . . 4 . . 7 . 1 5 6 Propulsion 84 | 2 . . . 2 5 3 4 1 . . 1 3 1 . 5 6 . . . 1 6 . 1 21 3 5 9 5 Treads 30 | . . . . 2 1 2 4 1 . . 1 3 1 . 1 3 . . . 1 4 . . 2 . 2 1 1 Leg 37 | . . . . . . . . . . . . . . . 4 1 . . . . . . . 18 3 1 7 3 Wheel 14 | 2 . . . . 4 1 . . . . . . . . . 2 . . . . 2 . 1 1 . . . 1 Hover 3 | . . . . . . . . . . . . . . . . . . . . . . . . . . 2 1 . Flight . | . . . . . . . . . . . . . . . . . . . . . . . . . . . . . Utility 124 | 1 2 . . . 7 1 2 . . 1 4 6 5 2 6 10 3 1 5 3 12 9 3 19 . 2 7 13 Device 59 | . . . . . 2 1 1 . . . 1 1 1 1 4 4 . 1 3 3 5 6 2 12 . . 1 10 Storage 31 | 1 2 . . . 2 . . . . . 1 2 . . . 1 . . 1 . 5 3 1 3 . 2 4 3 Processor 9 | . . . . . . . . . . . . . . . . 3 1 . . . 1 . . 4 . . . . Hackware 1 | . . . . . . . . . . . 1 . . . . . . . . . . . . . . . . . Protection 22 | . . . . . 3 . 1 . . 1 1 3 4 1 2 2 2 . 1 . 1 . . . . . . . Artifact 2 | . . . . . . . . . . . . . . . . . . . . . . . . . . . 2 . Weapon 240 | 2 1 . . 2 24 3 6 3 . 4 1 12 4 . 8 21 3 5 14 9 29 . 2 38 6 7 17 19 Energy Gun 51 | 1 . . . 1 12 . . 1 . . . 3 1 . 1 1 1 1 2 1 4 . 1 6 1 . 5 8 Energy Cannon 37 | . . . . . 3 . 2 2 . 1 . . . . 1 12 . 2 3 . 7 . . 3 . . 1 . Ballistic Gun 83 | 1 1 . . 1 3 1 3 . . 3 1 5 2 . 4 3 2 . 4 3 11 . . 18 4 4 5 4 Ballistic Cannon 22 | . . . . . . 1 . . . . . . . . . 2 . . 2 2 2 . . 5 . 1 5 2 Launcher 22 | . . . . . . . . . . . . 3 1 . . 1 . 1 . 3 4 . 1 4 . 1 1 2 Special Weapon . | . . . . . . . . . . . . . . . . . . . . . . . . . . . . . Impact Weapon 17 | . . . . . 6 1 1 . . . . 1 . . 1 2 . . 2 . . . . 1 . . . 2 Slashing Weapon 6 | . . . . . . . . . . . . . . . 1 . . 1 1 . 1 . . . 1 1 . . Piercing Weapon 2 | . . . . . . . . . . . . . . . . . . . . . . . . 1 . . . 1 Special Melee Weapon . | . . . . . . . . . . . . . . . . . . . . . . . . . . . . . Unidentified Prototypes 61 | . . . . . 2 1 . . . . 1 1 6 1 5 5 . . 4 . 4 . . 12 . 3 10 6 Parts Lost 139 | . . . . 3 14 2 2 1 . 5 . 2 1 . 15 13 6 2 . . 6 . 2 17 5 2 12 29 Power 15 | . . . . . 2 . . . . . . 1 . . 2 2 2 . . . 1 . . . . 1 1 3 Propulsion 31 | . . . . 1 4 2 1 . . . . 1 . . 2 3 . . . . . . 1 4 3 1 2 6 Utility 11 | . . . . . . . 1 . . 1 . . . . 1 1 1 . . . . . . 2 . . . 4 Weapon 82 | . . . . 2 8 . . 1 . 4 . . 1 . 10 7 3 2 . . 5 . 1 11 2 . 9 16 Highest Loss Streak 13 | . . . . 3 5 2 2 1 . 2 . 2 1 . 13 4 5 1 . . 4 . 2 4 2 2 5 10 Average Slot Usage (%) 91 | . 96 100 100 96 95 99 99 100 100 98 99 99 98 100 89 89 90 92 59 94 88 86 79 86 93 92 87 87 Engine 3 | . 14 14 14 14 4 7 7 7 7 7 13 12 13 13 10 . . . . . . . . . . . . . Core 3 | . . . . . 3 . . . . . . . . . . 7 10 11 11 11 4 5 5 2 . . . . Reactor 3 | . . . . . . . . . . . . . . . . 2 . . . . 4 5 5 5 10 8 8 8 Treads 10 | . . . . 18 6 1 21 23 23 23 19 19 20 20 16 6 11 11 11 11 11 10 10 5 . 4 8 3 Leg 6 | . . . . . . . . . . . . . . . 1 7 . . . . . . . 15 30 22 17 21 Wheel 4 | . 28 28 28 9 10 21 1 . . . . . . . . 3 5 5 5 5 9 10 5 2 . . . 2 Device 3 | . . . . . 7 7 7 7 7 7 6 2 4 . 1 3 . 1 4 5 4 4 4 3 . . . 2 Storage 11 | . 25 28 28 28 18 15 15 15 15 15 13 13 13 13 13 11 11 11 11 11 10 7 8 9 10 8 8 6 Processor 4 | . . . . . . . . . . . . . . . . 4 5 5 5 5 5 5 5 6 10 9 9 7 Protection 2 | . . . . . 9 7 7 7 7 7 2 6 7 13 10 2 4 3 . . . . . . . . . . Energy Gun 7 | . 14 14 14 9 13 23 15 18 23 15 . 3 10 13 9 . 4 7 . 7 6 . 2 5 5 . 5 11 Energy Cannon 3 | . . . . . 1 . 1 3 7 3 6 2 . . . 11 5 4 1 2 7 10 5 2 . . . . Ballistic Gun 15 | . 14 14 14 15 4 9 19 15 7 17 33 32 20 20 18 5 5 11 1 11 11 21 21 17 20 28 13 6 Ballistic Cannon 2 | . . . . . . 3 . . . . . . . . . 4 5 5 . 4 . . . 2 1 . 7 7 Impact Weapon 2 | . . . . . 15 . . . . . . . 6 6 5 5 7 5 . 5 3 . . 2 . . . . Slashing Weapon 2 | . . . . . . . . . . . . . . . . 5 5 2 . 5 4 5 5 1 3 4 3 . Naked Turns . | . . . . . . . . . . . . . . . . . . . . . . . . . . . . . Heaviest Build 137 | 11 41 41 41 39 62 69 72 71 71 75 91 95 96 96 96 137 97 101 79 79 116 110 110 131 131 107 117 119 Greatest Support 180 | 26 26 26 26 40 40 40 90 90 90 90 90 90 90 90 90 90 28 28 28 57 150 32 150 180 180 180 152 152 Greatest Overweight (x) 17 | . 1 1 1 1 17 3 3 . . . 1 1 1 1 1 4 3 3 2 2 3 3 3 4 1 1 1 5 Average Overweight (x) 1 | . . 1 1 . 1 1 . . . . . . . . . 2 2 2 1 1 1 2 2 1 . . . . Largest Inventory Capacity 16 | 6 16 16 16 16 16 16 16 16 16 16 16 16 16 16 16 16 14 14 14 14 16 16 16 16 16 16 16 16 Average Capacity 15 | 5 13 16 16 16 16 16 16 16 16 16 16 16 16 16 16 15 14 14 14 14 15 12 13 15 16 15 15 12 Most Carried 16 | 4 13 12 12 12 16 16 16 16 16 16 16 16 16 16 16 16 14 14 14 14 16 16 16 16 16 16 16 16 Average Carried 14 | 1 7 12 12 9 12 15 15 15 16 15 15 15 15 16 15 14 13 13 12 13 14 12 13 14 14 15 15 12 Final Capacity 16 | 6 16 16 16 16 16 16 16 16 16 16 16 16 16 16 16 14 14 14 14 14 16 16 16 16 16 16 16 10 Final Carried 16 | 4 12 12 12 9 16 15 16 16 16 14 16 16 16 16 16 14 13 14 13 14 16 16 16 16 14 16 16 7 Class Distribution -------------------- 43% | Scavenger-Mutant 22% | Scavenger-Executioner 11% | Scavenger-Gunner 8% | Scavenger-Tank 6% | Mutant 3% | Tank Dominant Class ---------------- Mutant | -10/Materials Mutant | -10/Mines Mutant | -10/Exiles Mutant | -9/Mines Tank | -8/Materials Tank | -7/Factory Scavenger-Tank | -7/Lower Caves Scavenger-Tank | -7/Lower Caves Scavenger-Tank | -7/Data Miner Scavenger-Tank | -6/Proximity Caves Scavenger-Executioner | -6/Factory Scavenger-Executioner | -6/Extension Commander-Mutant | -6/Cetus Scavenger-Executioner | -6/Archives Scavenger-Mutant | -6/Hub_04(d) Scavenger-Mutant | -5/Factory Scavenger-Mutant | -5/Upper Caves Scavenger-Gunner | -5/Upper Caves Scavenger-Mutant | -5/Zhirov Scavenger-Mutant | -4/Proximity Caves Scavenger-Executioner | -4/Factory Scavenger-Executioner | -4/Upper Caves Scavenger-Mutant | -4/Upper Caves Scavenger-Mutant | -4/Warlord Scavenger-Mutant | -3/Proximity Caves Scavenger-Executioner | -3/Research Scavenger-Mutant | -3/Quarantine Scavenger-Mutant | -3/Section 7 Resources | -11 -10 -10 -10 -9 -8 -7 -7 -7 -7 -6 -6 -6 -6 -6 -6 -5 -5 -5 -5 -4 -4 -4 -4 -4 -3 -3 -3 -3 ----------- Run | Scr Mat Min Exi Min Mat Fac Low Low Dat Pro Fac Ext Cet Arc Hub Fac Upp Upp Zhi Pro Fac Upp Upp War Pro Res Qua Sec Matter Collected 16787 | 219 103 . . 42 400 188 233 81 . 217 84 538 165 48 877 783 165 236 167 470 1004 508 184 3298 392 1654 2205 2526 Remotely . | . . . . . . . . . . . . . . . . . . . . . . . . . . . . . Salvage Created 26079 | . 156 . . 46 1566 415 205 124 . 359 11 1197 79 74 527 1831 443 326 263 685 2425 404 581 7966 547 1426 1259 3164 Parts 1048 | . 11 . . 6 75 14 12 8 . 14 2 77 3 2 18 72 19 15 1 25 113 15 15 281 16 54 73 107 Haulers Intercepted 12 | . 1 . . . 3 1 . . . . . . . . . 2 . . . . 2 . . . . 3 . . Recyclers Shooed 17 | . . . . . 4 2 . . . . . 1 . . . 3 . . . . 2 . . . . 2 1 2 Parts Field Recycled . | . . . . . . . . . . . . . . . . . . . . . . . . . . . . . Retrieved Matter . | . . . . . . . . . . . . . . . . . . . . . . . . . . . . . Parts Self-Destructed 279 | . . . . . . . 3 . . 21 . . . . . . 14 9 . 13 . 31 11 163 14 . . . Prevented 268 | . . . . . . . 9 10 . . . . . . . . 8 2 1 13 . . 9 216 . . . . Kills | -11 -10 -10 -10 -9 -8 -7 -7 -7 -7 -6 -6 -6 -6 -6 -6 -5 -5 -5 -5 -4 -4 -4 -4 -4 -3 -3 -3 -3 ------- Run | Scr Mat Min Exi Min Mat Fac Low Low Dat Pro Fac Ext Cet Arc Hub Fac Upp Upp Zhi Pro Fac Upp Upp War Pro Res Qua Sec Combat Hostiles Destroyed 359 | . 2 . . 4 24 4 4 2 . 9 . 12 1 1 5 28 7 6 . 11 28 6 7 121 6 12 19 40 Melee 14 | . . . . 3 3 . . . . . . . . . 1 6 1 . . . . . . . . . . . Guns 138 | . 2 . . 1 17 2 3 2 . 8 . 4 1 1 4 . 1 2 . 1 15 5 1 22 6 12 14 14 Cannons 58 | . . . . . 2 2 . . . 1 . 1 . . . 15 3 1 . 4 9 1 1 4 . . 2 12 AOE 67 | . . . . . . . . . . . . 7 . . . 2 . 2 . 3 1 . 3 49 . . . . Classes Destroyed 23 | . 4 . . 1 6 1 1 . . . . 1 . . 1 1 1 . . . . . . 3 . . 1 2 Worker 17 | . 1 . . . 4 1 . . . . . 4 . . 2 2 . . . . 1 . . . . 1 1 . Builder 11 | . 1 . . . 2 . . . . . . 4 . . . 1 . . . . 1 . . . . 2 . . Hauler 12 | . 1 . . . 3 1 . . . . . . . . . 2 . . . . 2 . . . . 3 . . Recycler 17 | . . . . . 5 2 . . . . . 1 . . 1 1 . . . . 2 . . . . 2 . 3 Mechanic 1 | . . . . . . . . . . . . . . . . 1 . . . . . . . . . . . . Operator 2 | . . . . . 1 . . . . . 1 . . . . . . . . . . . . . . . . . Watcher 8 | . . . . . 1 . . . . . . 1 . . . 4 . . . . . . . . . . 1 1 Swarmer 63 | . . . . 4 10 . . 1 . 4 . 3 . . . 8 . 2 . 3 3 2 . 12 3 1 3 4 Saboteur 9 | . . . . . . . . . . . . . . . . . . . . . . . . 9 . . . . Grunt 117 | . 2 . . . 6 1 . . . 3 . 5 . . 2 9 . 2 . 3 3 1 6 49 . 7 6 12 Brawler 11 | . . . . . . . . . . . . 1 . . . 1 . . . 1 . . . 7 . . . 1 Duelist 7 | . . . . . 1 . . . . . . . . . . 1 . . . 1 . . . 4 . . . . Protector 6 | . . . . . . . . . . . . . . . 1 . . . . . . . . 5 . . . . Researcher 1 | . . . . . . . . . . . . . . . . . . . . . . . . . . . . 1 Sentry 38 | . . . . . 6 2 . . . 1 . 2 . 1 . 1 1 1 . 1 8 2 1 . . 2 . 9 Demolisher 1 | . . . . . . . . . . . . . . . . . . . . . . . . . . . . 1 Specialist 4 | . . . . . . . . . . . . . . . . . 1 . . . . . . 3 . . . . Hunter 40 | . . . . . 1 . 1 . . . . . . . . 4 4 . . 2 4 1 . 13 2 2 2 4 Programmer 38 | . . . . . . 1 2 . . 1 . 1 . . . 4 1 1 . . 10 . . 2 . . 7 8 Behemoth 4 | . . . . . . . 1 1 . . . . . . . . . . . . . . . . 1 . . 1 Cetus Guard 1 | . . . . . . . . . . . . . 1 . . . . . . . . . . . . . . . Lightning 2 | . . . . . . . . . . . . . . . 2 . . . . . . . . . . . . . Striker 5 | . . . . . . . . . . . . . . . . . . . . . . . . 5 . . . . Executioner 12 | . . . . . . . . . . . . . . . . . . . . . . . . 12 . . . . Alpha 7 1 | . . . . . . . . . . . . . . . . . . . . . . . . . . . 1 . Thug 3 | . . . . . . . . . . . . 3 . . . . . . . . . . . . . . . . Best Kill Streak 21 | . 3 . . 3 6 4 1 1 . 3 1 17 1 1 4 9 1 3 . 3 8 2 5 21 3 6 5 8 Combat Bots Only 21 | . 1 . . 3 5 2 1 1 . 3 . 8 1 1 2 4 1 3 . 3 6 2 5 21 3 6 5 7 Max Kills in Single Turn 6 | . 1 . . 1 1 1 1 1 . 1 1 6 1 1 2 5 1 1 . 1 2 2 3 5 1 2 1 1 Gunslinging 2 | . . . . . . . . . . . . . . . . . . . . . 1 . . 2 . 1 . . Exploded 5 | . . . . . . . . . . . . 2 . . . 1 . 1 . 1 1 . 3 5 . . . . Melee 1 | . . . . 1 1 . . . . . . . . . 1 1 1 . . . . . . . . . . . Uniques/NPCs Destroyed 1 | . . . . . . . . . . . . . 1 . . . . . . . . . . . . . . . A7 (-6/Cetus) Combat | -11 -10 -10 -10 -9 -8 -7 -7 -7 -7 -6 -6 -6 -6 -6 -6 -5 -5 -5 -5 -4 -4 -4 -4 -4 -3 -3 -3 -3 -------- Run | Scr Mat Min Exi Min Mat Fac Low Low Dat Pro Fac Ext Cet Arc Hub Fac Upp Upp Zhi Pro Fac Upp Upp War Pro Res Qua Sec Damage Taken 37218 | . 165 . . 410 1858 351 781 433 . 721 . 1057 449 58 4182 3114 1102 335 . 395 1839 96 498 5746 1517 1007 4107 6997 Core 3739 | . 35 . . 83 347 18 107 31 . 55 . 87 21 34 536 225 114 12 . 22 49 . . 780 174 25 408 576 Absorbed by Shields 1390 | . . . . . . . . . . . . 15 147 . . . . . . . . . . 1141 . . 87 . Reduced by Siege Mode 632 | . . . . . . . . . . . . . . . 168 . . . . . 6 . . 24 . . 283 151 Core Remaining (%) 49 | 100 . . . 52 36 . . . . 69 . . . . 20 . . . . 62 . . . . 8 . . . Volleys Fired 934 | . 12 . . 13 75 13 17 10 . 20 14 34 11 2 36 62 11 11 8 29 61 14 13 174 24 37 77 156 Largest 7 | . 2 . . 2 4 5 5 5 . 5 6 6 4 5 5 6 4 6 1 5 6 6 6 7 6 6 6 5 Hottest 547 | . 70 . . 70 252 232 245 195 . 251 219 229 240 251 251 547 240 354 88 289 327 209 209 454 272 228 317 312 Shots Fired 2519 | . 24 . . 24 200 65 72 33 . 95 24 94 19 9 111 122 25 38 8 57 235 87 28 378 70 165 183 353 Gun 1846 | . 24 . . 24 191 52 56 20 . 91 10 76 17 9 107 9 15 26 . 29 158 59 17 209 67 165 155 260 Cannon 521 | . . . . . 9 13 16 13 . 4 14 6 . . 4 113 10 8 8 16 68 28 4 64 3 . 28 92 Launcher 152 | . . . . . . . . . . . . 12 2 . . . . 4 . 12 9 . 7 105 . . . 1 Special . | . . . . . . . . . . . . . . . . . . . . . . . . . . . . . Kinetic 1402 | . 12 . . 16 34 26 29 12 . 57 10 60 9 6 104 22 8 21 . 28 105 59 15 220 51 165 142 191 Thermal 636 | . 12 . . 8 125 39 27 8 . 37 14 22 8 3 7 73 4 7 . 10 96 28 6 38 19 . . 45 Explosive 5 | . . . . . . . . . . . . . . . . . . . . . . . . 4 . . . 1 Electromagnetic 476 | . . . . . 41 . 16 13 . 1 . 12 2 . . 27 13 10 8 19 34 . 7 116 . . 41 116 Robot Hit Streak 39 | . 9 . . 6 16 11 14 16 . 11 2 10 7 6 15 11 9 15 9 14 30 4 8 16 12 20 35 39 Robot Miss Streak 5 | . 2 . . 4 4 2 1 2 . 5 5 5 2 2 4 5 2 3 . 2 2 5 2 4 3 4 1 3 Penetration Max 2 | . . . . . . . . . . . . . 1 . 1 1 . . . 1 . . 1 1 1 1 2 2 Secondary Targets 27 | . . . . . 3 . . . . 3 . . 1 . 1 . . . . . 1 . 1 5 3 3 4 2 Max Gunslinging Chain 2 | . . . . . 1 . . . . 1 . . 1 . 1 . . . . . 1 . 1 2 1 1 1 1 Shots Hit Robots 1686 | . 16 . . 13 179 46 53 24 . 52 2 59 11 6 91 100 43 22 8 31 143 38 17 194 53 97 139 249 Core Hits 838 | . 8 . . 5 52 13 10 8 . 21 1 59 8 3 52 44 13 9 4 22 64 10 12 224 19 38 46 93 Critical Hits 77 | . . . . . . . . . . 1 . . 6 . 6 6 1 1 . . 4 2 1 14 6 6 7 16 Critical Kills 24 | . . . . . . . . . . 1 . . 1 . 1 3 1 . . . 2 2 1 4 1 2 1 4 Critical Parts Destroyed 46 | . . . . . . . . . . . . . 4 . 5 3 . 1 . . 2 . . 9 4 4 6 8 Melee Attacks 284 | . . . . . 61 4 2 . . . . 11 . . 5 89 32 . . 24 5 . . 8 4 8 21 10 Impact 183 | . . . . . 61 4 2 . . . . 11 . . 3 64 24 . . 1 5 . . 6 . . . 2 Slashing 93 | . . . . . . . . . . . . . . . 2 25 8 . . 23 . . . 2 4 8 21 . Piercing 8 | . . . . . . . . . . . . . . . . . . . . . . . . . . . . 8 Sneak Attacks 16 | . . . . . 10 2 . . . . . . . . 1 . . . . . . . . . . 2 1 . Combat Hostiles . | . . . . . . . . . . . . . . . . . . . . . . . . . . . . . Follow-up Attacks 42 | . . . . . 19 . . . . . . . . . . 17 6 . . . . . . . . . . . Damage Inflicted 63321 | . 252 . . 149 3657 1054 846 413 . 931 50 2435 522 74 2023 4932 1196 551 306 1340 4746 713 1035 18250 1794 3462 4217 8373 Guns 29853 | . 224 . . 120 1625 693 624 249 . 859 12 803 404 73 1698 239 191 266 . 445 2553 389 190 4427 1219 3196 3490 5864 Cannons 10604 | . . . . . 141 170 222 164 . 72 38 127 . . 149 2146 160 45 306 259 1598 324 105 1710 146 . 536 2186 Explosions 17403 | . . . . . . . . . . . . 1505 118 . . 1181 . 240 . 636 595 . 740 12113 . . . 275 Melee 5370 | . . . . . 1888 191 . . . . . . . . 164 1366 845 . . . . . . . 429 266 173 48 Ramming 91 | . 28 . . 29 3 . . . . . . . . 1 12 . . . . . . . . . . . 18 . Kinetic 24383 | . 113 . . 87 215 305 169 160 . 507 12 506 299 48 1612 387 148 199 . 550 1436 389 190 4700 1012 3196 3117 5026 Thermal 12152 | . 111 . . 33 1174 558 455 89 . 424 38 663 105 25 235 2071 43 52 . 77 2074 324 349 2308 353 . . 591 Explosive 841 | . . . . . . . . . . . . . . . . . . . . . . . . 566 . . . 275 Electromagnetic 20484 | . . . . . 377 . 222 164 . . . 1266 118 . . 1108 160 300 306 713 1236 . 496 10676 . . 909 2433 Impact 3588 | . . . . . 1888 191 . . . . . . . . 66 897 498 . . . . . . . . . . 48 Slashing 1782 | . . . . . . . . . . . . . . . 98 469 347 . . . . . . . 429 266 173 . Piercing . | . . . . . . . . . . . . . . . . . . . . . . . . . . . . . Highest Corruption 42 | . 2 2 2 2 . 1 1 1 1 1 . . . . 42 5 7 7 7 8 5 5 5 8 8 2 15 36 Average Corruption 7 | . 2 2 2 2 . 1 1 1 1 1 . . . . 24 4 6 7 7 7 3 5 5 6 8 2 8 23 Corruption Purged . | . . . . . . . . . . . . . . . . . . . . . . . . . . . . . Effects 657 | . . . 1 4 . . 2 4 1 5 . . . . 40 50 34 17 11 40 15 19 15 84 35 . 68 212 Message Errors 105 | . . . . 2 . . . 3 1 1 . . . . 3 10 11 3 1 10 5 2 3 12 9 . 9 20 Matter Fused 104 | . . . . . . . . . . . . . . . 1 12 6 5 7 5 3 1 3 16 5 . 18 22 Heat Flow Errors 54 | . . . . . . . . . . . . . . . 2 6 3 . 2 9 2 . 1 11 2 . 5 11 Energy Discharges 54 | . . . . . . . 1 . . 2 . . . . 1 6 2 2 . 3 1 4 3 12 3 . 6 8 Parts Rejected 7 | . . . . . . . . . . . . . . . 1 . . . . . . . . 1 . . 2 3 Data Loss (minor) 52 | . . . 1 1 . . 1 1 . 1 . . . . . 5 7 2 1 5 . 1 2 6 5 . 4 9 Data Loss (major) 20 | . . . . . . . . . . . . . . . 1 2 . . . 2 . 2 . 5 1 . 1 6 Misfires 15 | . . . . . . . . . . . . . . . 1 1 2 1 . . . 3 . 1 . . 1 5 Alerts 2 | . . . . . . . . . . . . . . . . . . . . . . . . . . . . 2 Misdirections 31 | . . . . . . . . . . . . . . . 1 . . . . . . . . . . . 8 22 Targeting Errors 172 | . . . . 1 . . . . . 1 . . . . 20 8 3 4 . 5 4 6 2 14 8 . 9 87 Weapon Failures 41 | . . . . . . . . . . . . . . . 9 . . . . 1 . . 1 6 2 . 5 17 Overload Shots 2 | . . . . . . . . . . . . . 2 . . . . . . . . . . . . . . . Overflow Damage 2221 | . . . . . 367 82 . . . . . 11 . . . 662 121 15 81 32 6 . 100 351 129 86 59 119 Projectiles 434 | . . . . . . 14 . . . . . . . . . 104 1 . 81 23 6 . 7 70 . . 59 69 Explosions 901 | . . . . . . . . . . . . 11 . . . 470 . 15 . 9 . . 93 281 . . . 22 Melee 886 | . . . . . 367 68 . . . . . . . . . 88 120 . . . . . . . 129 86 . 28 Knockbacks 31 | . 1 . . . 4 3 . . . . . . . . . 4 1 . . . . . . 4 . . 7 7 Impact 11 | . 1 . . . 4 1 . . . . . . . . . 3 1 . . . . . . . . . . 1 Kinetic 18 | . . . . . . 2 . . . . . . . . . 1 . . . . . . . 3 . . 6 6 Secondary 2 | . . . . . . . . . . . . . . . . . . . . . . . . 1 . . 1 . Self-Inflicted Damage 753 | . 14 . . . . . . . . . . 14 10 . . 358 . . . 43 . . . 221 . . . 93 Shots 18 | . . . . . . . . . . . . 1 1 . . 4 . . . 2 . . . 9 . . . 1 Rammed 15 | . 1 . . 9 . . . . . . . . . 1 2 . . . . . . . . . . . 2 . Targets Rammed 18 | . 1 . . 11 1 . . . . . . . . 1 2 . . . . . . . . . . . 2 . Kicked . | . . . . . . . . . . . . . . . . . . . . . . . . . . . . . Crushed 3 | . . . . 2 1 . . . . . . . . . . . . . . . . . . . . . . . Highest Temperature 612 | . 90 . . 27 303 194 226 36 . 157 . 282 234 177 456 406 250 487 146 300 501 286 282 509 342 344 174 612 Average Temperature 106 | . 32 . . 13 67 59 74 15 . 53 . 71 83 81 141 107 89 152 77 124 118 115 101 115 146 79 68 132 Received Heat Transfer 4317 | . 54 . . . 738 81 84 60 . 111 . 207 36 . 429 270 9 54 . 48 108 18 75 636 9 183 279 828 Effects 40 | . . . . . 1 . . . . . . . . . 1 1 . 5 . 2 . . . 13 . 2 . 15 Shutdowns 6 | . . . . . . . . . . . . . . . 1 1 . 1 . . . . . 1 . . . 2 Energy Bleed 3 | . . . . . 1 . . . . . . . . . . . . . . . . . . 1 . . . 1 Interference 16 | . . . . . . . . . . . . . . . . . . 3 . 2 . . . 3 . 1 . 7 Matter Decay 2 | . . . . . . . . . . . . . . . . . . . . . . . . 1 . 1 . . Short Circuit 5 | . . . . . . . . . . . . . . . . . . 1 . . . . . 3 . . . 1 Damage (minor) 1 | . . . . . . . . . . . . . . . . . . . . . . . . 1 . . . . Damage (major) 5 | . . . . . . . . . . . . . . . . . . . . . . . . 2 . . . 3 Damage (core) 2 | . . . . . . . . . . . . . . . . . . . . . . . . 1 . . . 1 Siege Activations 23 | . . . . . . . . . . . . . . . 1 . . . . . 1 . . 2 . . 7 12 Total Turns 601 | . . . . . . . . . . . . . . . 89 . . . . . 8 . . 45 . . 203 256 Longest Duration 89 | . . . . . . . . . . . . . . . 89 . . . . . 8 . . 27 . . 50 43 Robots Corrupted 76 | . . . . . . . 1 . . . . . . . . 3 . 1 . 3 4 . 2 45 . . 3 14 Combat Hostiles 75 | . . . . . . . 1 . . . . . . . . 3 . 1 . 3 3 . 2 45 . . 3 14 Parts Fried 169 | . . . . . 13 . 1 . . . . 4 . . . 12 4 . . 9 6 . 4 83 . . 6 27 Impact Corruptions 32 | . . . . . 16 3 . . . . . . . . . 8 4 . . . . . . . . . . 1 Robots Melted 1 | . . . . . . . . . . . . . . . . . . . . . . . . 1 . . . . Combat Hostiles 1 | . . . . . . . . . . . . . . . . . . . . . . . . 1 . . . . Parts Melted 31 | . . . . . 1 . 3 2 . 3 . 1 . . . 5 . . . . 7 2 . 5 1 . . 1 Heat Transferred 16015 | . 333 . . 75 2578 1036 814 185 . 753 25 919 148 37 211 1835 74 74 . 111 2726 333 261 2229 518 . . 740 Parts Sabotaged 4 | . . . . . . . . . . . . . . . . . . . . . . . . . . . . 4 Parts Stolen . | . . . . . . . . . . . . . . . . . . . . . . . . . . . . . Parts Stripped . | . . . . . . . . . . . . . . . . . . . . . . . . . . . . . Power Chain Reactions 26 | . . . . . . . . . . . . 6 . . . . . . . . . . 1 19 . . . . Missiles Intercepted . | . . . . . . . . . . . . . . . . . . . . . . . . . . . . . Alert | -11 -10 -10 -10 -9 -8 -7 -7 -7 -7 -6 -6 -6 -6 -6 -6 -5 -5 -5 -5 -4 -4 -4 -4 -4 -3 -3 -3 -3 ------- Run | Scr Mat Min Exi Min Mat Fac Low Low Dat Pro Fac Ext Cet Arc Hub Fac Upp Upp Zhi Pro Fac Upp Upp War Pro Res Qua Sec Peak Influence 1135 | . 87 . . 70 730 413 . . . . 85 649 914 551 824 1135 . . . . 929 . . . . 468 460 886 Initial 365 | . . . . . 27 288 . . . . 69 . 320 365 192 296 . . . . 4 . . . . . 240 135 Average 348 | . 33 . . 52 336 339 . . . . 32 231 685 467 577 590 . . . . 263 . . . . 218 278 438 Maximum Alert Level 4 | . . . . . 3 2 . . . . . 2 3 2 3 4 . . . . 3 . . . . 2 2 3 Low Security (%) 34 | 100 100 100 . 100 32 . . . . . 100 51 . . 9 . . . . . 66 . . . . 46 7 13 Level 1 26 | . . . . . 27 87 . . . . . 21 5 12 9 28 . . . . . . . . . 33 77 37 Level 2 28 | . . . . . 38 12 . . . . . 27 55 87 49 47 . . . . 19 . . . . 19 14 31 Level 3 10 | . . . . . . . . . . . . . 38 . 30 20 . . . . 13 . . . . . . 18 Level 4 . | . . . . . . . . . . . . . . . . 3 . . . . . . . . . . . . Level 5 . | . . . . . . . . . . . . . . . . . . . . . . . . . . . . . High Security . | . . . . . . . . . . . . . . . . . . . . . . . . . . . . . Max Security . | . . . . . . . . . . . . . . . . . . . . . . . . . . . . . Squads Dispatched 54 | . . . . . 5 2 . . . . 1 1 . . 3 9 . . . . 8 . . . . 4 6 15 Investigation 5 | . . . . . 1 . . . . . . . . . 1 . . . . . 2 . . . . . 1 . Extermination 15 | . . . . . . 1 . . . . 1 . . . . 3 . . . . 4 . . . . . 2 4 Reinforcement 18 | . . . . . 1 . . . . . . 1 . . 2 3 . . . . 1 . . . . 4 3 3 Assault 7 | . . . . . . . . . . . . . . . . 3 . . . . 1 . . . . . . 3 Garrison 7 | . . . . . 3 1 . . . . . . . . . . . . . . . . . . . . . 3 Intercept 2 | . . . . . . . . . . . . . . . . . . . . . . . . . . . . 2 Construction Impeded 4 | . . . . . . . . . . . . . . . 1 1 . . . . . . . . . . 1 1 Haulers Reinforced 3 | . . . . . . . . . . . . . . . . . . . . . . . . . . 3 . . Stealth | -11 -10 -10 -10 -9 -8 -7 -7 -7 -7 -6 -6 -6 -6 -6 -6 -5 -5 -5 -5 -4 -4 -4 -4 -4 -3 -3 -3 -3 --------- Run | Scr Mat Min Exi Min Mat Fac Low Low Dat Pro Fac Ext Cet Arc Hub Fac Upp Upp Zhi Pro Fac Upp Upp War Pro Res Qua Sec Distress Signals 22 | . . . . . 2 . . . . . . 2 2 . 1 1 . . . . 3 . . . . 8 . 3 Communications Jammed . | . . . . . . . . . . . . . . . . . . . . . . . . . . . . . Distress Signals . | . . . . . . . . . . . . . . . . . . . . . . . . . . . . . Times Spotted 628 | . 5 . . 4 58 5 4 4 . 13 1 39 16 4 21 55 8 7 . 8 37 13 13 190 9 22 25 67 Peak Tracking Total 15 | . 3 . . 4 8 3 1 3 . 3 1 11 9 1 6 6 2 3 . 4 8 5 5 15 5 5 5 8 Tactical Retreats 49 | . . . . . 15 . . 1 . 1 . 2 1 . 1 3 . . . . 1 1 1 15 2 1 1 3 Traps | -11 -10 -10 -10 -9 -8 -7 -7 -7 -7 -6 -6 -6 -6 -6 -6 -5 -5 -5 -5 -4 -4 -4 -4 -4 -3 -3 -3 -3 ------- Run | Scr Mat Min Exi Min Mat Fac Low Low Dat Pro Fac Ext Cet Arc Hub Fac Upp Upp Zhi Pro Fac Upp Upp War Pro Res Qua Sec Traps Triggered 15 | . 3 . . . 1 1 . . . . . . . . . . . 1 . . 2 . . 2 . 1 4 . Indirectly 3 | . . . . . . . . . . . . . . . . . . . . . 1 . . 2 . . . . Trap Hack Attempts . | . . . . . . . . . . . . . . . . . . . . . . . . . . . . . Triggered . | . . . . . . . . . . . . . . . . . . . . . . . . . . . . . Disarmed . | . . . . . . . . . . . . . . . . . . . . . . . . . . . . . Reprogrammed . | . . . . . . . . . . . . . . . . . . . . . . . . . . . . . Reused . | . . . . . . . . . . . . . . . . . . . . . . . . . . . . . Traps Extracted . | . . . . . . . . . . . . . . . . . . . . . . . . . . . . . Installed . | . . . . . . . . . . . . . . . . . . . . . . . . . . . . . Triggered 30 | . . . . . . . . 3 . . . 1 . . 1 . . . . . . . . 24 1 . . . Machines | -11 -10 -10 -10 -9 -8 -7 -7 -7 -7 -6 -6 -6 -6 -6 -6 -5 -5 -5 -5 -4 -4 -4 -4 -4 -3 -3 -3 -3 ---------- Run | Scr Mat Min Exi Min Mat Fac Low Low Dat Pro Fac Ext Cet Arc Hub Fac Upp Upp Zhi Pro Fac Upp Upp War Pro Res Qua Sec Machines Disabled 54 | . . . . . 2 . . . . . . 4 3 . . 9 1 . . . 7 . . 6 . 4 7 11 Max in Single Turn 5 | . . . . . 1 . . . . . . 1 1 . . 5 1 . . . 1 . . 1 . 1 1 1 Garrison Access 5 | . . . . . . . . . . . . . . . 1 2 . . . . . . . . . 1 1 . Network Hub 2 | . . . . . . . . . . . . . . . 2 . . . . . . . . . . . . . Machines Sabotaged . | . . . . . . . . . . . . . . . . . . . . . . . . . . . . . Garrisons Compromised . | . . . . . . . . . . . . . . . . . . . . . . . . . . . . . Overloaded Fab Kills . | . . . . . . . . . . . . . . . . . . . . . . . . . . . . . Fab Network Shutdowns 1 | . . . . . . . . . . . . . . . . . . . . . 1 . . . . . . . Hacking | -11 -10 -10 -10 -9 -8 -7 -7 -7 -7 -6 -6 -6 -6 -6 -6 -5 -5 -5 -5 -4 -4 -4 -4 -4 -3 -3 -3 -3 --------- Run | Scr Mat Min Exi Min Mat Fac Low Low Dat Pro Fac Ext Cet Arc Hub Fac Upp Upp Zhi Pro Fac Upp Upp War Pro Res Qua Sec Machines Accessed 79 | . . . 1 . 4 2 1 . 4 . 5 3 1 . 3 11 1 2 6 . 6 . 1 5 . 7 9 7 Terminals 37 | . . . . . 4 2 . . . . 2 3 1 . 2 4 . 1 . . 3 . . . . 3 7 5 Fabricators 5 | . . . . . . . . . . . 1 . . . . 2 . . . . 1 . . . . 1 . . Repair Stations 7 | . . . . . . . . . . . 1 . . . . 2 . . . . 1 . . . . 1 1 1 Recycling Units 3 | . . . . . . . . . . . 1 . . . . 1 . . . . 1 . . . . . . . Scanalyzers 2 | . . . . . . . . . . . . . . . . . . . . . . . . . . 1 . 1 Garrison Access 5 | . . . . . . . . . . . . . . . 1 2 . . . . . . . . . 1 1 . Total Hacks 271 | . . . 4 . 7 7 1 . 28 . 10 5 2 . 4 43 1 3 42 . 22 . 1 12 . 24 31 24 Successful 171 | . . . 4 . 5 4 1 . 28 . 5 1 . . 1 13 1 3 42 . 12 . 1 12 . 14 14 10 Failed 100 | . . . . . 2 3 . . . . 5 4 2 . 3 30 . . . . 10 . . . . 10 17 14 Catastrophic 32 | . . . . . . . . . . . 1 2 1 . 1 9 . . . . 7 . . . . 3 5 3 Database Lockouts . | . . . . . . . . . . . . . . . . . . . . . . . . . . . . . Manual 74 | . . . . . 7 7 . . . . 2 5 1 . 3 8 . . . . 8 . . 1 . 2 18 12 Terminals 104 | . . . . . 7 7 . . . . 3 5 2 . 2 20 . 2 . . 13 . . . . 5 24 14 Fabricators 20 | . . . . . . . . . . . 3 . . . . 8 . . . . 2 . . . . 7 . . Repair Stations 32 | . . . . . . . . . . . 2 . . . . 8 . . . . 5 . . . . 6 4 7 Recycling Units 5 | . . . . . . . . . . . 2 . . . . 1 . . . . 2 . . . . . . . Scanalyzers 6 | . . . . . . . . . . . . . . . . . . . . . . . . . . 3 . 3 Garrison Access 14 | . . . . . . . . . . . . . . . 2 6 . . . . . . . . . 3 3 . Terminal Hacks 113 | . . . 4 . 1 2 1 . 28 . 2 1 . . . 4 1 3 42 . 3 . 1 12 . 2 5 1 Record 62 | . . . 4 . . . . . 11 . . . . . . . . 2 34 . . . . 10 . . 1 . Part Schematic 11 | . . . . . . . . . 7 . . . . . . . . . 4 . . . . . . . . . Robot Schematic 7 | . . . . . . . . . 7 . . . . . . . . . . . . . . . . . . . Robot Analysis 4 | . . . . . . . . . . . . . . . . . . . 4 . . . . . . . . . Prototype ID Bank 3 | . . . . . . . . . 3 . . . . . . . . . . . . . . . . . . . Open Door 9 | . . . . . . . 1 . . . 1 . . . . . 1 1 . . . . 1 2 . 1 1 . Branch Access Points 4 | . . . . . . 1 . . . . 1 . . . . 1 . . . . 1 . . . . . . . Terminal Index 3 | . . . . . . 1 . . . . . 1 . . . . . . . . . . . . . . 1 . Unreport Threat 6 | . . . . . . . . . . . . . . . . 3 . . . . 2 . . . . . 1 . Locate Traps 1 | . . . . . . . . . . . . . . . . . . . . . . . . . . 1 . . Zone Layout 3 | . . . . . 1 . . . . . . . . . . . . . . . . . . . . . 1 1 Fabricator Hacks 11 | . . . . . . . . . . . 1 . . . . 4 . . . . 2 . . . . 4 . . Load Schematic 7 | . . . . . . . . . . . 1 . . . . 3 . . . . 1 . . . . 2 . . Build 4 | . . . . . . . . . . . . . . . . 1 . . . . 1 . . . . 2 . . Repair Station Hacks 20 | . . . . . . . . . . . 2 . . . . 3 . . . . 5 . . . . 3 3 4 Scan Component 13 | . . . . . . . . . . . 1 . . . . 2 . . . . 3 . . . . 2 2 3 Repair 7 | . . . . . . . . . . . 1 . . . . 1 . . . . 2 . . . . 1 1 1 Recycling Unit Hacks 1 | . . . . . . . . . . . . . . . . 1 . . . . . . . . . . . . Retrieve Components 1 | . . . . . . . . . . . . . . . . 1 . . . . . . . . . . . . Scanalyzer 4 | . . . . . . . . . . . . . . . . . . . . . . . . . . 3 . 1 Insert Component 3 | . . . . . . . . . . . . . . . . . . . . . . . . . . 2 . 1 Analyze 1 | . . . . . . . . . . . . . . . . . . . . . . . . . . 1 . . Garrison Access Hacks 3 | . . . . . . . . . . . . . . . . 1 . . . . . . . . . 1 1 . Seal Access 3 | . . . . . . . . . . . . . . . . 1 . . . . . . . . . 1 1 . Unauthorized Hacks 19 | . . . . . 4 2 . . . . . . . . 1 . . . . . 2 . . . . 1 5 4 Terminals 18 | . . . . . 4 2 . . . . . . . . . . . . . . 2 . . . . 1 5 4 Track 2 | . . . . . . . . . . . . . . . . . . . . . . . . . . . 1 1 Assimilate 1 | . . . . . . . . . . . . . . . . . . . . . 1 . . . . . . . Botnet 14 | . . . . . 4 2 . . . . . . . . . . . . . . 1 . . . . 1 3 3 Operators 1 | . . . . . . . . . . . . . . . . . . . . . . . . . . . 1 . Fabricators . | . . . . . . . . . . . . . . . . . . . . . . . . . . . . . Repair Stations . | . . . . . . . . . . . . . . . . . . . . . . . . . . . . . Recycling Units . | . . . . . . . . . . . . . . . . . . . . . . . . . . . . . Scanalyzers . | . . . . . . . . . . . . . . . . . . . . . . . . . . . . . Garrison Access 1 | . . . . . . . . . . . . . . . 1 . . . . . . . . . . . . . Jam 1 | . . . . . . . . . . . . . . . 1 . . . . . . . . . . . . . Data Cores Recovered 1 | . . . . . . . . . . . 1 . . . . . . . . . . . . . . . . . Used 1 | . . . . . . . . . . . 1 . . . . . . . . . . . . . . . . . Hacking Detections 46 | . . . . . 1 2 . . . . 3 2 2 . 3 9 . . . . 5 . . . . 5 7 7 Full Trace Events 1 | . . . . . . . . . . . . . . . . . . . . . 1 . . . . . . . Feedback Events . | . . . . . . . . . . . . . . . . . . . . . . . . . . . . . Feedback Blocked . | . . . . . . . . . . . . . . . . . . . . . . . . . . . . . Robot Schematics Acquired 7 | . . . . . . . . . 7 . . . . . . . . . . . . . . . . . . . Robots Built . | . . . . . . . . . . . . . . . . . . . . . . . . . . . . . Matter . | . . . . . . . . . . . . . . . . . . . . . . . . . . . . . Time . | . . . . . . . . . . . . . . . . . . . . . . . . . . . . . Total Robot Build Rating . | . . . . . . . . . . . . . . . . . . . . . . . . . . . . . Part Schematics Acquired 12 | . . . . . . . . . 7 . . . . . . . . . 4 . . . . . . 1 . . Parts Built 4 | . . . . . . . . . . . . . . . . 1 . . . . 1 . . . . 2 . . Matter 1371 | . . . . . . . . . . . . . . . . 285 . . . . 351 . . . . 735 . . Time 534 | . . . . . . . . . . . . . . . . 152 . . . . 187 . . . . 195 . . Total Part Build Rating 27 | . . . . . . . . . . . . . . . . 5 . . . . 7 . . . . 15 . . Parts Repaired 7 | . . . . . . . . . . . 1 . . . . 1 . . . . 2 . . . . 1 1 1 Time 527 | . . . . . . . . . . . 50 . . . . 108 . . . . 70 . . . . 68 136 95 Parts Recycled . | . . . . . . . . . . . . . . . . . . . . . . . . . . . . . Recycled Matter . | . . . . . . . . . . . . . . . . . . . . . . . . . . . . . Retrieved Matter . | . . . . . . . . . . . . . . . . . . . . . . . . . . . . . Retrieved Components 2 | . . . . . . . . . . . . . . . . 2 . . . . . . . . . . . . Parts Scanalyzed 1 | . . . . . . . . . . . . . . . . . . . . . . . . . . 1 . . Part Schematics Acquired 1 | . . . . . . . . . . . . . . . . . . . . . . . . . . 1 . . Parts Damaged . | . . . . . . . . . . . . . . . . . . . . . . . . . . . . . Bothacking | -11 -10 -10 -10 -9 -8 -7 -7 -7 -7 -6 -6 -6 -6 -6 -6 -5 -5 -5 -5 -4 -4 -4 -4 -4 -3 -3 -3 -3 ------------ Run | Scr Mat Min Exi Min Mat Fac Low Low Dat Pro Fac Ext Cet Arc Hub Fac Upp Upp Zhi Pro Fac Upp Upp War Pro Res Qua Sec Used RIF Installer . | . . . . . . . . . . . . . . . . . . . . . . . . . . . . . Robots Hacked . | . . . . . . . . . . . . . . . . . . . . . . . . . . . . . Non-combat . | . . . . . . . . . . . . . . . . . . . . . . . . . . . . . Combat . | . . . . . . . . . . . . . . . . . . . . . . . . . . . . . Robot Hacks Applied . | . . . . . . . . . . . . . . . . . . . . . . . . . . . . . Relay Couplers Released 8 | . . . . . . . . . . . . . . . 2 2 . . . . . . . . . 4 . . Machine Destruction 4 | . . . . . . . . . . . . . . . 2 2 . . . . . . . . . . . . Programmers 4 | . . . . . . . . . . . . . . . . . . . . . . . . . . 4 . . Robots Rewired 28 | . . . . . . . . . . . . 25 . . . . . . . . . 1 . 2 . . . . Allies Hacked 2 | . . . . . . . . . . . . 2 . . . . . . . . . . . . . . . . Hacks Repelled . | . . . . . . . . . . . . . . . . . . . . . . . . . . . . . Allies | -11 -10 -10 -10 -9 -8 -7 -7 -7 -7 -6 -6 -6 -6 -6 -6 -5 -5 -5 -5 -4 -4 -4 -4 -4 -3 -3 -3 -3 -------- Run | Scr Mat Min Exi Min Mat Fac Low Low Dat Pro Fac Ext Cet Arc Hub Fac Upp Upp Zhi Pro Fac Upp Upp War Pro Res Qua Sec Total Allies 50 | . . . . . . . . . . 1 . 34 5 . . . . . . . 1 1 . 2 . 6 . . Largest Group 22 | . . . . . . . . . . 1 . 22 18 6 5 . . . . . 1 1 . 2 . 6 . . Highest-Rated Group 865 | . . . . . . . . . . 94 . 763 865 500 413 . . . . . 10 47 . 92 . 276 . . Highest-Rated Ally 156 | . . . . . . . . . . 94 . 156 156 94 94 . . . . . 10 47 . 46 . 46 . . Total Orders 105 | . . . . . . . . . . . . . 40 . . . . . . . 3 28 8 21 . . . 5 STAY 26 | . . . . . . . . . . . . . 16 . . . . . . . 2 4 1 3 . . . . FOLLOW 26 | . . . . . . . . . . . . . 24 . . . . . . . 1 1 . . . . . . EXPLORE 15 | . . . . . . . . . . . . . . . . . . . . . . 8 2 5 . . . . RETURN 38 | . . . . . . . . . . . . . . . . . . . . . . 15 5 13 . . . 5 Ally Attacks 661 | . . . . . . . . . . 16 . 158 178 21 46 . . . . . . 67 29 81 . 37 . 28 Total Damage 15361 | . . . . . . . . . . 416 . 3431 4321 812 1332 . . . . . . 887 535 2002 . 947 . 678 Kills 85 | . . . . . . . . . . 4 . 23 28 5 10 . . . . . . 4 3 4 . 3 . 1 Allies Corrupted 1 | . . . . . . . . . . . . . . . 1 . . . . . . . . . . . . . Allies Melted . | . . . . . . . . . . . . . . . . . . . . . . . . . . . . . Intel | -11 -10 -10 -10 -9 -8 -7 -7 -7 -7 -6 -6 -6 -6 -6 -6 -5 -5 -5 -5 -4 -4 -4 -4 -4 -3 -3 -3 -3 ------- Run | Scr Mat Min Exi Min Mat Fac Low Low Dat Pro Fac Ext Cet Arc Hub Fac Upp Upp Zhi Pro Fac Upp Upp War Pro Res Qua Sec Robot Analysis Total 4 | . . . . . . . . . . . . . . . . . . . 4 . . . . . . . . . Derelict Logs Recovered 9 | . . . . . . . 2 1 . 2 . . . . . . 1 1 . 1 . . 1 . . . . . Drone Launches 53 | . . . . . . . . . . . . . . . . . . . . . . 19 9 19 . . . 6 Drone Recoveries 50 | . . . . . . . . . . . . . . . . . . . . . . 19 9 17 . . . 5 Exploration | -11 -10 -10 -10 -9 -8 -7 -7 -7 -7 -6 -6 -6 -6 -6 -6 -5 -5 -5 -5 -4 -4 -4 -4 -4 -3 -3 -3 -3 ------------- Run | Scr Mat Min Exi Min Mat Fac Low Low Dat Pro Fac Ext Cet Arc Hub Fac Upp Upp Zhi Pro Fac Upp Upp War Pro Res Qua Sec Turns Passed 26425 | 69 434 33 201 130 1401 331 983 694 173 655 914 1698 753 127 659 2178 952 477 443 1275 2223 606 366 3647 772 778 1589 1864 Spaces Moved 15116 | 64 369 34 202 44 645 222 526 410 109 360 512 788 396 58 228 1242 615 333 342 798 1418 320 196 2349 343 511 882 800 Core 11 | 2 . . . . 9 . . . . . . . . . . . . . . . . . . . . . . . Treads 4191 | . . . . 44 193 15 526 410 109 360 512 788 396 58 199 22 . . . 267 115 . 2 114 . 14 19 28 Legs 4123 | . . . . . . . . . . . . . . . 29 348 . . . . . . . 1283 343 497 863 760 Wheels 6791 | 62 369 34 202 . 443 207 . . . . . . . . . 872 615 333 342 531 1303 320 194 952 . . . 12 Hover . | . . . . . . . . . . . . . . . . . . . . . . . . . . . . . Flight . | . . . . . . . . . . . . . . . . . . . . . . . . . . . . . Fastest Speed 50 | 50 90 100 100 160 100 100 160 160 160 160 160 160 160 160 100 120 120 120 110 120 103 110 120 100 100 100 100 110 Average Speed 131 | 88 97 100 100 163 141 105 163 160 160 160 168 167 164 179 171 130 129 128 111 141 120 119 129 118 100 101 112 127 Slowest Speed 900 | 90 100 100 100 180 900 220 220 160 160 160 180 180 180 180 180 185 130 130 120 185 185 120 160 230 130 165 145 165 Overloaded Moves . | . . . . . . . . . . . . . . . . . . . . . . . . . . . . . Propulsion Burnouts . | . . . . . . . . . . . . . . . . . . . . . . . . . . . . . Robots Hopped . | . . . . . . . . . . . . . . . . . . . . . . . . . . . . . Cave-ins Triggered 1 | . . . . . . . . . . . . . . . . . . . . . . . . 1 . . . . Teleports 2 | . . . . . . . . . . . . . . . . . . . . . . . . 1 . . . 1 Exploration Rate (%) 50 | 3 65 8 61 19 50 8 72 46 74 66 17 81 85 66 18 31 68 62 62 81 34 60 44 98 50 14 83 42 Regions Visited 28 Branch Regions 21 Pre-discovered Areas 8 | . . . 1 . . . 2 . 1 1 . . . . . . . . 3 . . . . . . . . . Known Exits Taken 7 | . . . . . . 1 . . . . 1 . . . . 1 . . . 1 1 . 1 . 1 . . . Unknown Exits Taken 21 | 1 1 1 1 1 1 . 1 1 1 1 . 1 1 1 1 . 1 1 1 . . 1 . 1 . 1 1 . Scrap Searched 10 | . . . . . . . 2 . . 1 . . . . . . 2 . . 3 . 1 . . 1 . . . Spaces Dug 148 | . . . . . 1 2 2 . . . 10 11 . . 2 35 3 . . 24 8 . 1 12 . 4 19 14 Terrain Destroyed 725 | . . . . . 1 3 2 . . 1 13 17 2 1 26 162 8 9 . 30 35 31 15 137 38 56 63 75 Melee 98 | . . . . . 1 2 2 . . . . 11 . . 2 26 3 . . 23 5 . . 4 . 4 13 2 Projectile 477 | . . . . . . 1 . . . 1 13 3 2 1 24 53 5 9 . 7 30 31 6 101 38 52 50 50 AOE 150 | . . . . . . . . . . . . 3 . . . 83 . . . . . . 9 32 . . . 23 Terrain Rammed . | . . . . . . . . . . . . . . . . . . . . . . . . . . . . . Walls Destroyed . | . . . . . . . . . . . . . . . . . . . . . . . . . . . . . Machines Disabled . | . . . . . . . . . . . . . . . . . . . . . . . . . . . . . Actions | -11 -10 -10 -10 -9 -8 -7 -7 -7 -7 -6 -6 -6 -6 -6 -6 -5 -5 -5 -5 -4 -4 -4 -4 -4 -3 -3 -3 -3 --------- Run | Scr Mat Min Exi Min Mat Fac Low Low Dat Pro Fac Ext Cet Arc Hub Fac Upp Upp Zhi Pro Fac Upp Upp War Pro Res Qua Sec Total 19510 | 73 419 33 201 71 895 275 599 427 108 387 547 1082 484 77 405 1605 708 359 402 868 1793 502 290 2898 711 660 1303 1328 Wait 1953 | . 24 . . . 52 12 38 . . . 4 27 44 11 98 152 47 3 . 1 202 132 56 170 330 64 219 267 Move 15087 | 63 368 33 201 43 644 221 525 409 108 359 511 787 395 57 227 1241 614 332 341 797 1417 319 195 2347 342 510 881 800 Hop . | . . . . . . . . . . . . . . . . . . . . . . . . . . . . . Pick Up 242 | 4 8 . . . 26 5 1 2 . 3 7 1 8 1 5 21 1 2 6 1 18 15 11 32 1 12 30 21 Fast Attach 233 | 6 2 . . . 12 1 1 . . . 1 2 6 2 8 19 6 3 13 . 17 9 3 38 2 11 34 37 Attach 105 | . . . . 3 10 3 2 1 . 5 4 2 3 . 7 15 2 1 7 . 8 . 3 14 5 1 1 8 Detach 42 | . . . . . . . . . . . 1 1 . . 4 7 1 1 8 . 3 1 1 7 1 1 1 4 Swap 165 | . 2 . . 1 18 4 10 3 . . 2 18 3 . 7 6 . 3 . 13 28 . . 35 2 3 3 4 Drop 289 | . 2 . . . 20 4 3 2 . . 3 7 14 3 6 20 1 3 18 4 34 11 8 62 . 13 30 21 Fire 934 | . 12 . . 13 75 13 17 10 . 20 14 34 11 2 36 62 11 11 8 29 61 14 13 174 24 37 77 156 Melee 225 | . . . . . 37 4 2 . . . . 11 . . 5 62 25 . . 23 5 . . 8 4 8 21 10 Ram 1 | . 1 . . . . . . . . . . . . . . . . . . . . . . . . . . . Kick . | . . . . . . . . . . . . . . . . . . . . . . . . . . . . . Crush 17 | . . . . 11 1 . . . . . . . . 1 2 . . . . . . . . . . . 2 . Escape Stasis 13 | . . . . . . 8 . . . . . . . . . . . . . . . . . 1 . . 4 . Rewire 204 | . . . . . . . . . . . . 192 . . . . . . 1 . . 1 . 10 . . . . Trap . | . . . . . . . . . . . . . . . . . . . . . . . . . . . . . Miscellaneous . | . . . . . . . . . . . . . . . . . . . . . . . . . . . . . Route ------- -11/Scrapyard -10/Materials (discovered 2 exits: [*Mat] / [*Min]) -10/Mines -10/Exiles -9/Mines -8/Materials -7/Factory (discovered 2 exits: *Low x2) -7/Lower Caves -7/Lower Caves -7/Data Miner -6/Proximity Caves -6/Factory (discovered 4 exits: Low x2 / *Ext x2) -6/Extension (discovered 2 exits: *Fac / *Cet) -6/Cetus (discovered 3 exits: *Fac x2 / [*Arc]) -6/Archives -6/Hub_04(d) -5/Factory (discovered 4 exits: *Fac x2 / *Upp x2) -5/Upper Caves -5/Upper Caves -5/Zhirov -4/Proximity Caves -4/Factory (discovered 6 exits: *Res x3 / *Upp x2 / Arm) -4/Upper Caves -4/Upper Caves -4/Warlord -3/Proximity Caves -3/Research -3/Quarantine (discovered 2 exits: [*Res] / *Sec) -3/Section 7 (discovered 1 exit: [*Res]) History --------- Turn | Location | Event 6 | -11/Scrapyard | Discovered new exit (range 15) 70 | -11/Scrapyard | Entered Materials 308 | -10/Materials | Build established: Mutant 401 | -10/Materials | Discovered new exit (range 15) 495 | -10/Materials | Discovered new exit (range 10) 504 | -10/Materials | Entered Mines 533 | -10/Mines | Deemed a non-threat by the Exiles lab entrance 533 | -10/Mines | Discovered new exit (range 5) 537 | -10/Mines | Entered Exiles 561 | -10/Exiles | Met 8R-AWN 578 | -10/Exiles | Met EX-HEX 630 | -10/Exiles | Met EX-DEC 649 | -10/Exiles | Learned location of Zion (-6) 672 | -10/Exiles | Met EX-BIN 726 | -10/Exiles | Discovered new exit (range 14) 738 | -10/Exiles | Entered Mines 787 | -9/Mines | Lost 3 parts (1n2w) 858 | -9/Mines | Discovered new exit (range 7) 868 | -9/Mines | Entered Materials 868 | -8/Materials | Evolved 4 slots: Utility x2, Weapon x2 1297 | -8/Materials | Lost 5 parts (1p1n3w) 1953 | -8/Materials | Core integrity fell below 50% 1954 | -8/Materials | Garrison activated, responded to threat 2019 | -8/Materials | Lost 3 parts (3w) 2253 | -8/Materials | Discovered new exit (range 11) 2269 | -8/Materials | Entered Factory 2269 | -7/Factory | Evolved 2 slots: Propulsion x1, Weapon x1 2317 | -7/Factory | Identified exit to Lower Caves 2431 | -7/Factory | Garrison activated, responded to threat 2600 | -7/Factory | Entered Lower Caves 2704 | -7/Lower Caves | Spotted B-75 Beast 2735 | -7/Lower Caves | Destroyed B-75 Beast 3060 | -7/Lower Caves | Build established: Scavenger-Tank 3414 | -7/Lower Caves | Discovered new exit (range 15) 3433 | -7/Lower Caves | Learned location of Extension (-6) 3583 | -7/Lower Caves | Entered another Lower Caves area 3619 | -7/Lower Caves | Learned Factory trap positions 3936 | -7/Lower Caves | Spotted B-75 Beast 3964 | -7/Lower Caves | Destroyed B-75 Beast 4246 | -7/Lower Caves | Discovered new exit (range 9) 4277 | -7/Lower Caves | Entered Data Miner 4277 | -7/Data Miner | Discovered new exit (range 6) 4308 | -7/Data Miner | Met Data Miner 4335 | -7/Data Miner | Learned location of Section 7 (-3) 4335 | -7/Data Miner | Acquired the access code to Warlord's prototype stash 4365 | -7/Data Miner | Received God Mode back door access code from Data Miner 4450 | -7/Data Miner | Entered Proximity Caves 4630 | -6/Proximity Caves | Escorted by Enhanced Grunt 4740 | -6/Proximity Caves | Learned Factory trap positions 4976 | -6/Proximity Caves | Attracted the attention of an 0b10 checkpoint 5057 | -6/Proximity Caves | Discovered new exit (range 5) 5105 | -6/Proximity Caves | Entered Factory 5105 | -6/Factory | Evolved 2 slots: Power x1, Weapon x1 5106 | -6/Factory | Loaded intel: 88 trap records 5444 | -6/Factory | Identified exit to Lower Caves 5444 | -6/Factory | Identified exit to Extension 5711 | -6/Factory | Build established: Scavenger-Executioner 5953 | -6/Factory | Repaired Imp. Medium Treads? 6019 | -6/Factory | Entered Extension 6153 | -6/Extension | Rescued a captive Derelict 6154 | -6/Extension | Rescued a captive Derelict 6166 | -6/Extension | Rescued a captive Derelict 6337 | -6/Extension | Rescued a captive Derelict 6342 | -6/Extension | Rescued a captive Derelict 6544 | -6/Extension | Disrupted transfer network 6893 | -6/Extension | Spotted B-75 Beast 6900 | -6/Extension | Allies destroyed B-75 Beast 6910 | -6/Extension | Spotted B-75 Beast 6917 | -6/Extension | Allies destroyed B-75 Beast 6990 | -6/Extension | Destroyed 8 combat bots 7163 | -6/Extension | Rescued A7 7392 | -6/Extension | Rescued a captive Derelict 7393 | -6/Extension | Rescued a captive Derelict 7537 | -6/Extension | Rescued a captive Derelict 7661 | -6/Extension | Discovered new exit (range 10) 7663 | -6/Extension | Discovered new exit (range 6) 7717 | -6/Extension | Entered Cetus 7717 | -6/Cetus | Accompanied by 18 allies (A7) 7722 | -6/Cetus | Acquired a Cetus Manufacturing Module code from A7 7738 | -6/Cetus | Spotted Cetus Guard 7738 | -6/Cetus | Spotted Cetus Guard 7738 | -6/Cetus | Allies destroyed Cetus Guard 7740 | -6/Cetus | Spotted Cetus Guard 7749 | -6/Cetus | Allies destroyed Cetus Guard 7749 | -6/Cetus | Spotted Cetus Guard 7757 | -6/Cetus | Allies destroyed Cetus Guard 7763 | -6/Cetus | Allies destroyed Cetus Guard 7808 | -6/Cetus | Discovered new exit (range 16) 7987 | -6/Cetus | Build established: Commander-Mutant 8034 | -6/Cetus | Started Cetus Manufacturing Module 8059 | -6/Cetus | Manufactured an Enhanced Grunt 8061 | -6/Cetus | Escorted A7 to Cetus Mainframe 8084 | -6/Cetus | Manufactured an Enhanced Grunt 8109 | -6/Cetus | Manufactured an Enhanced Grunt 8134 | -6/Cetus | Manufactured an Enhanced Grunt 8159 | -6/Cetus | Manufactured an Enhanced Grunt 8204 | -6/Cetus | Discovered new exit (range 16) 8267 | -6/Cetus | Spotted Cetus Guard 8270 | -6/Cetus | Spotted Cetus Guard 8273 | -6/Cetus | Destroyed Cetus Guard 8282 | -6/Cetus | Spotted Cetus Guard 8290 | -6/Cetus | Allies destroyed Cetus Guard 8292 | -6/Cetus | Allies destroyed A7 8296 | -6/Cetus | Extracted ID and sensor layout for unrecognized location from A7's data core 8296 | -6/Cetus | Discovered new exit (range 16) 8297 | -6/Cetus | Allies destroyed Cetus Guard 8315 | -6/Cetus | Found Prototype Protection 8315 | -6/Cetus | Identified Med. Regenerative Plating 8327 | -6/Cetus | Met Revision 17 8470 | -6/Cetus | Entered Archives 8470 | -6/Archives | Accompanied by 6 allies 8492 | -6/Archives | Found Prototype Device 8492 | -6/Archives | Identified Exp. Thermal Shield 8567 | -6/Archives | Discovered new exit (range 15) 8597 | -6/Archives | Entered Hub_04(d) 8597 | -6/Hub_04(d) | Accompanied by 5 allies 8712 | -6/Hub_04(d) | Discovered new exit (range 15) 8774 | -6/Hub_04(d) | Build established: Scavenger-Executioner 8957 | -6/Hub_04(d) | Network Hub disabled 8957 | -6/Hub_04(d) | Network Hub disabled 9043 | -6/Hub_04(d) | Spotted Lightning 9048 | -6/Hub_04(d) | Spotted Lightning 9081 | -6/Hub_04(d) | Spotted Lightning 9083 | -6/Hub_04(d) | System corruption reached 10% 9129 | -6/Hub_04(d) | Core integrity fell below 50% 9160 | -6/Hub_04(d) | System corruption reached 30% 9179 | -6/Hub_04(d) | Destroyed Lightning 9197 | -6/Hub_04(d) | Destroyed Lightning 9218 | -6/Hub_04(d) | Found Prototype Device 9218 | -6/Hub_04(d) | Identified Exp. Phase Shifter 9225 | -6/Hub_04(d) | Lost 13 parts (2p1n1u9w) 9234 | -6/Hub_04(d) | Found Prototype Energy Cannon 9235 | -6/Hub_04(d) | Spotted Lightning 9238 | -6/Hub_04(d) | Spotted Lightning 9240 | -6/Hub_04(d) | Spotted Lightning 9256 | -6/Hub_04(d) | Entered Factory 9256 | -5/Factory | Evolved 2 slots: Propulsion x1, Weapon x1 9257 | -5/Factory | Loaded intel: 101 trap records 9258 | -5/Factory | Identified EMDS 9476 | -5/Factory | Build established: Scavenger-Mutant 9569 | -5/Factory | Discovered new exit (range 11) 9592 | -5/Factory | Identified exit to Factory 10152 | -5/Factory | Fabricated Exp. Targeting Computer (x1) 10301 | -5/Factory | Discovered exit to Factory (range 15) 10545 | -5/Factory | Repaired Centrium Heavy Treads 10738 | -5/Factory | Incoming assault squad redirected 11056 | -5/Factory | First assault squad dispatched 11149 | -5/Factory | Incoming assault squad redirected 11182 | -5/Factory | Lost 4 parts (1n3w) 11232 | -5/Factory | Identified exit to Upper Caves 11376 | -5/Factory | Incoming assault squad redirected 11420 | -5/Factory | Found Prototype Launcher 11421 | -5/Factory | Identified Tesla Bomb Launcher 11424 | -5/Factory | Found Tesla Bomb Launcher 11434 | -5/Factory | Entered Upper Caves 11476 | -5/Upper Caves | Acquired the password to a Derelict Tinkerer's latest research 11496 | -5/Upper Caves | Learned Factory emergency access door positions 11711 | -5/Upper Caves | Attracted the attention of an 0b10 checkpoint 11765 | -5/Upper Caves | Caught by Unaware searching for contraband prototypes 11793 | -5/Upper Caves | Caught by Unaware searching for contraband prototypes 11823 | -5/Upper Caves | Lost 5 parts (2p3w) 12372 | -5/Upper Caves | Discovered new exit (range 10) 12386 | -5/Upper Caves | Entered another Upper Caves area 12471 | -5/Upper Caves | Build established: Scavenger-Gunner 12587 | -5/Upper Caves | Attracted the attention of an 0b10 checkpoint 12856 | -5/Upper Caves | Discovered new exit (range 3) 12863 | -5/Upper Caves | Entered Zhirov 12863 | -5/Zhirov | Discovered new exit (range 3) 12886 | -5/Zhirov | Met Zhirov 12914 | -5/Zhirov | Learned location of Quarantine (-3) 12914 | -5/Zhirov | Learned location of Testing (-2) 12914 | -5/Zhirov | Learned location of Command (-1) 12940 | -5/Zhirov | Zhirov requested help retrieving the SGEMP Prototype 12957 | -5/Zhirov | Found Alien Artifact 12957 | -5/Zhirov | Identified Integrated Reactor 12957 | -5/Zhirov | Installed Integrated Reactor, increased core energy generation (+10) 12973 | -5/Zhirov | Found Alien Artifact 13214 | -5/Zhirov | Build established: Scavenger-Mutant 13306 | -5/Zhirov | Entered Proximity Caves 13457 | -4/Proximity Caves | Learned Research emergency access door positions 14015 | -4/Proximity Caves | Attracted the attention of an 0b10 checkpoint 14516 | -4/Proximity Caves | Discovered exit to Factory (range 10) 14581 | -4/Proximity Caves | Entered Factory 14581 | -4/Factory | Evolved 2 slots: Propulsion x2 14618 | -4/Factory | Found Quantum Capacitor 14785 | -4/Factory | Found Prototype Device 14785 | -4/Factory | Identified Exp. ECM Suite 15288 | -4/Factory | Discovered new exit (range 11) 15340 | -4/Factory | Build established: Scavenger-Executioner 15432 | -4/Factory | Identified exit to Research 15740 | -4/Factory | Repaired Arm. Huge Wheel 15766 | -4/Factory | Repaired Lrg. Storage Unit 15828 | -4/Factory | Fabricated Assault Drone Bay? 16069 | -4/Factory | Local fabrication network quarantined 16122 | -4/Factory | First assault squad dispatched 16145 | -4/Factory | Incoming assault squad redirected 16161 | -4/Factory | Lost 4 parts (1p3w) 16184 | -4/Factory | Identified exit to Upper Caves 16184 | -4/Factory | Identified exit to Armory 16205 | -4/Factory | Discovered exit to Research (range 7) 16311 | -4/Factory | Discovered exit to Research (range 15) 16804 | -4/Factory | Entered Upper Caves 16852 | -4/Upper Caves | Attracted the attention of an 0b10 checkpoint 17144 | -4/Upper Caves | Discovered new exit (range 72) 17227 | -4/Upper Caves | Attracted the attention of an 0b10 outpost 17410 | -4/Upper Caves | Entered another Upper Caves area 17410 | -4/Upper Caves | Accompanied by 1 ally 17411 | -4/Upper Caves | Identified exit to Warlord 17525 | -4/Upper Caves | Attracted the attention of an 0b10 checkpoint 17644 | -4/Upper Caves | Learned Research emergency access door positions 17774 | -4/Upper Caves | Attracted the attention of an 0b10 outpost 17776 | -4/Upper Caves | Entered Warlord 17802 | -4/Warlord | Build established: Scavenger-Mutant 17821 | -4/Warlord | System corruption cleaned by Quarantine Array 18470 | -4/Warlord | Visited the Vortex Lab 18475 | -4/Warlord | Warlord's base attacked by MAIN.C 18493 | -4/Warlord | Found Prototype Energy Gun 18493 | -4/Warlord | Identified Vortex Rifle 18502 | -4/Warlord | Found Prototype Piercing Weapon 18502 | -4/Warlord | Identified Vortex Lance 18593 | -4/Warlord | Met Warlord 18609 | -4/Warlord | Opened Warlord's prototype stash 18614 | -4/Warlord | Found Prototype Reactor 18614 | -4/Warlord | Identified Vortex Chain Reactor 18625 | -4/Warlord | Found Prototype Device 18625 | -4/Warlord | Identified Exp. Focal Shield 18825 | -4/Warlord | Warlord forces counterattacked 18832 | -4/Warlord | Spotted Striker 18873 | -4/Warlord | Destroyed 7 combat bots 18896 | -4/Warlord | Spotted Striker 18897 | -4/Warlord | Spotted Executioner 18897 | -4/Warlord | Spotted Striker 18907 | -4/Warlord | Destroyed Executioner 18978 | -4/Warlord | Spotted Striker 18992 | -4/Warlord | Spotted Executioner 18997 | -4/Warlord | Spotted Executioner 19031 | -4/Warlord | Destroyed Executioner 19040 | -4/Warlord | Destroyed Executioner 19106 | -4/Warlord | Spotted Striker 19110 | -4/Warlord | Spotted Striker 19125 | -4/Warlord | Destroyed Striker 19154 | -4/Warlord | Destroyed 8 combat bots 19204 | -4/Warlord | Spotted Striker 19204 | -4/Warlord | Destroyed Striker 19208 | -4/Warlord | Spotted Striker 19216 | -4/Warlord | Spotted Executioner 19221 | -4/Warlord | Destroyed Executioner 19257 | -4/Warlord | Destroyed 21 combat bots 19331 | -4/Warlord | Spotted Striker 19333 | -4/Warlord | Spotted Executioner 19339 | -4/Warlord | Destroyed Executioner 19362 | -4/Warlord | Destroyed 8 combat bots 19414 | -4/Warlord | Spotted Executioner 19418 | -4/Warlord | Destroyed Executioner 19451 | -4/Warlord | Destroyed 13 combat bots 19456 | -4/Warlord | Lost 3 parts (1n2w) 19507 | -4/Warlord | Spotted Executioner 19507 | -4/Warlord | Spotted B-90 Cyclops 19512 | -4/Warlord | Destroyed Executioner 19512 | -4/Warlord | Destroyed Striker 19542 | -4/Warlord | Destroyed 7 combat bots 19655 | -4/Warlord | Destroyed Executioner 19670 | -4/Warlord | Spotted Striker 19676 | -4/Warlord | Destroyed 7 combat bots 19703 | -4/Warlord | Destroyed Striker 19718 | -4/Warlord | Spotted Executioner 19726 | -4/Warlord | Destroyed 9 combat bots 19732 | -4/Warlord | Lost 3 parts (1u2w) 19760 | -4/Warlord | Spotted Striker 20046 | -4/Warlord | Spotted Striker 20068 | -4/Warlord | Destroyed Striker 20090 | -4/Warlord | Identified Transdimensional Reconstructor 20090 | -4/Warlord | Warped through subspace 20377 | -4/Warlord | Spotted Executioner 20380 | -4/Warlord | Spotted Executioner 20417 | -4/Warlord | Destroyed Executioner 20427 | -4/Warlord | Destroyed Executioner 20451 | -4/Warlord | Spotted Executioner 20499 | -4/Warlord | Destroyed Executioner 20552 | -4/Warlord | Found Prototype Processor 20552 | -4/Warlord | Identified Exp. Core Analyzer 20574 | -4/Warlord | Spotted Executioner 20588 | -4/Warlord | Destroyed Executioner 20595 | -4/Warlord | Core integrity fell below 50% 20656 | -4/Warlord | Lost 4 parts (1n1u2w) 20671 | -4/Warlord | Found Exp. Targeting Computer 20806 | -4/Warlord | Opened side exit 20828 | -4/Warlord | Discovered new exit (range 14) 20947 | -4/Warlord | Build established: Scavenger-Executioner 20966 | -4/Warlord | Found Prototype Ballistic Cannon 20966 | -4/Warlord | Identified Hvy. Autocannon 21189 | -4/Warlord | Crushed by falling debris 21268 | -4/Warlord | Found Exp. Targeting Computer 21423 | -4/Warlord | Entered Proximity Caves 21593 | -3/Proximity Caves | Core integrity fell below 20% 21656 | -3/Proximity Caves | Spotted B-86 Titan 21668 | -3/Proximity Caves | Destroyed B-86 Titan 21785 | -3/Proximity Caves | Discovered exit to Research (range 15) 21993 | -3/Proximity Caves | Build established: Scavenger-Mutant 22021 | -3/Proximity Caves | Received a Behemoth hack from an annoying Tinkerer 22195 | -3/Proximity Caves | Entered Research 22195 | -3/Research | Evolved 2 slots: Propulsion x2 22395 | -3/Research | Repaired Broken Helical Railgun 22395 | -3/Research | Revision forces began assault on 0b10 22474 | -3/Research | Met up with Revision 17++ 22710 | -3/Research | Fabricated Assault Drone Bay (x1) 22814 | -3/Research | Fabricated Helical Railgun? 22854 | -3/Research | Found Prototype Launcher 22854 | -3/Research | Identified Adv. Micro-nuke Launcher 22880 | -3/Research | Discovered new exit (range 8) 22895 | -3/Research | Research terminal network offline 22973 | -3/Research | Entered Quarantine 23017 | -3/Quarantine | Found Alien Artifact 23017 | -3/Quarantine | Identified Phase Redirector 23054 | -3/Quarantine | Found Alien Energy Cannon 23054 | -3/Quarantine | Identified Core Cannon 23241 | -3/Quarantine | Lost 5 parts (1p1n3w) 23413 | -3/Quarantine | Found Alien Artifact 23477 | -3/Quarantine | Found Alien Artifact 23660 | -3/Quarantine | Found Transdimensional Reconstructor 23702 | -3/Quarantine | Found Alien Artifact 23702 | -3/Quarantine | Identified Matter Drive 23807 | -3/Quarantine | System corruption reached 10% 24166 | -3/Quarantine | Repaired Broken Enh. Biometal Leg? 24271 | -3/Quarantine | Spotted Alpha 7 24307 | -3/Quarantine | Destroyed Alpha 7 24319 | -3/Quarantine | Found Prototype Ballistic Gun 24319 | -3/Quarantine | Identified Multirail 24343 | -3/Quarantine | Found Alien Launcher 24343 | -3/Quarantine | Identified Sigix Terminator 24384 | -3/Quarantine | Discovered new exit (range 20) 24449 | -3/Quarantine | Spotted Fortress 24495 | -3/Quarantine | Lost 3 parts (3w) 24530 | -3/Quarantine | Discovered new exit (range 5) 24562 | -3/Quarantine | Entered Section 7 24573 | -3/Section 7 | Identified Core Reset Matrix 24715 | -3/Section 7 | Found Integrated Reactor 24715 | -3/Section 7 | Installed Integrated Reactor, increased core energy generation (+10) 25071 | -3/Section 7 | Repaired Broken Adv. Heavy Treads 25191 | -3/Section 7 | Lost 3 parts (1n2w) 25559 | -3/Section 7 | Destroyed 7 combat bots 25610 | -3/Section 7 | Found Alien Artifact 25610 | -3/Section 7 | Identified Integrity Redistributor 25610 | -3/Section 7 | Used Integrity Redistributor, redistributed integrity from core (-260) 25611 | -3/Section 7 | Core integrity fell below 50% 25625 | -3/Section 7 | Spotted B-86 Titan 25643 | -3/Section 7 | Destroyed B-86 Titan 25686 | -3/Section 7 | Discovered new exit (range 6) 25851 | -3/Section 7 | First assault squad dispatched 25926 | -3/Section 7 | Warped through subspace 25940 | -3/Section 7 | Found Integrated Reactor 25940 | -3/Section 7 | Installed Integrated Reactor, increased core energy generation (+10) 26041 | -3/Section 7 | Found Integrated Reactor 26041 | -3/Section 7 | Installed Integrated Reactor, increased core energy generation (+10) 26080 | -3/Section 7 | Incoming assault squad redirected 26098 | -3/Section 7 | Garrison activated, responded to threat 26326 | -3/Section 7 | System corruption reached 30% 26396 | -3/Section 7 | Lost 5 parts (1p1n3w) 26402 | -3/Section 7 | Scanned by Researcher 26403 | -3/Section 7 | Intercept squad dispatched 26412 | -3/Section 7 | Spotted Tracker 26417 | -3/Section 7 | Core integrity fell below 20% 26420 | -3/Section 7 | Spotted Combat Programmer 26426 | -3/Section 7 | Destroyed by Combat Programmer with EMDS Last Messages --------------- area. 26420_ Held in stasis. 26420_ C-55 Analyst is analyzing... 26420_ Slug penetrates Tracker. 26421_ Broken Myomer Leg destroyed. 26424_ Railgun destroyed. 26424_ Penetrated by EMDS Slug. 26424_ Critical hit. 26424_ Exp. Cooling System destroyed. 26424_ Held in stasis. 26424_ C-55 Analyst is analyzing... 26424_ Destroyed Stasis Beam. 26424_ Destroyed System Guard. 26425_ Overheating: Energy bleed (-16). 26425_ The unstable cave ceiling collapses. 26425_ U-05 Engineer lays Concrete. 26425_ Power Maul destroyed. 26425_ Broken Enh. Biometal Leg destroyed. 26426_ U-05 Engineer lays Concrete. 26426_ Penetrated by EMDS Slug. Map ----- +----------------------------------------------------+ | u#????????????????????????????????????? | | #????????????????????????????????????? | | # ####?????????????????????????????????? | | k ## #?????????????????????????????????? | | ### # = #?????????????????????????????????? | | ?# [ [ #######????????????????????????????? | | ?#"" """ ##############???????????????? | | ?#"" """ " """ # ????????????????? | | #"T """ """ #""" # ?????????????????? | | #"" ##""" # === #??????????????????? | | #"" | !##""" # === #??????????????????? | | # ##""" # == ! #??????????????????? | | ####+######### # #??????????????????? | | ## ##########+### #??????????????????? | | ### #??????????????????? | | ??# A gg #??????????????????? | | ??# #######o #+##########"#####???????????????? | | #### ##?????#g # !##=!|u / #???????????????? | | #??????# g#= ] ##%""" #???????????????? | | #??????# # ##g""" !#???????????????? | | h#??????# # ##!""" #???????????????? | | "" h ###????# # ##* #???????????????? | | "" ""#???## s#### #%] " #???????????????? | | "" ""#???# =!### # %[ " #???????????????? | | ""#???# " !%g[! !! === ! #???????????????? | | "" G#???# " **|u%=% p@ != #???????????????? | | "" ""#???# =### ==cg ######???????????????? | | "" ""#???######?# #????????????????????? | | ""#??????????# = w #####??????????????????? | | ###??????????# % ## ??????????????????? | | #????????????# ## ??????????????????? | | +######????????????## + ??????????????????? | | #?????????????# ## """"??????????????????? | | #?????????????# ## " "??????????????????? | | #?????????????# ## ""??????????????????? | | #?????????????# ## " ??????????????????? | | #?????????????# ## ""??????????????????? | | #?????????????# ## ??????????????????? | | #?????????????# #######??####????????????? | | ############### #?# ?? ?????????????? | | ## # #?# ? ??????????????? | | ????????????????????# ?????? ???????????????? | | ????????????????????? ????? ????????????????? | | ????????????????????? ???? #????????????????? | | ????????????????????? ??? ?????????????????? | | ????????????????????? ### ??????????????????? | | ???????????????????????? ???????????????????? | | ???????????????????????? ????????????????????? | | ??????????????????????? ?????????????????????? | | ??????????????????????? ??????????????????????? | +----------------------------------------------------+ Best States ------------- Heat Dissipation 84 Coolant Potential 80 Energy Generation 81 Energy Capacity 1700 Matter Stores 300 Matter Capacity 300 Sight Range 23 Terrain Scan Density 10 Power Amplification 30 Armor Coverage 450 Propulsion Shielding 90 Utility Shielding 66 Weapon Cycling 20 Phase Shifting 20 Evasion (%) 60 Targeting Accuracy 20 Recoil Reduction 4 Particle Charging 15 Stasis Canceling 1 Offensive Hacking 10 Item Schematics ----------------- Combat Drone Bay | -7/Data Miner | Free Lgt. Regenerative Plating | -7/Data Miner | Free Exp. Terrain Scanner | -7/Data Miner | Free Exp. Targeting Computer | -7/Data Miner | Free Tactical Coordination Suite | -7/Data Miner | Free Exp. Transmission Jammer | -7/Data Miner | Free Plasma Sword | -7/Data Miner | Free Assault Drone Bay | -5/Zhirov | Free Exp. Heat Sink | -5/Zhirov | Free Exp. Optical Array | -5/Zhirov | Free Imp. Arc Thrower | -5/Zhirov | Free Helical Railgun | -3/Research | Scanalyzed Robot Schematics ------------------ S-27 Virus | -7/Data Miner | Free G-50 Soldier | -7/Data Miner | Free G-67 Veteran | -7/Data Miner | Free X-72 Disruptor | -7/Data Miner | Free H-66 Slayer | -7/Data Miner | Free I-36 Angel | -7/Data Miner | Free I-47 Archangel | -7/Data Miner | Free Fabricated ------------ Exp. Targeting Computer | x1 | -5/Factory Assault Drone Bay | x1 | -4/Factory Assault Drone Bay | x1 | -3/Research Helical Railgun | x1 | -3/Research Alien Tech Used ----------------- Integrated Reactor Transdimensional Reconstructor Phase Redirector Core Cannon Matter Drive Sigix Terminator Integrity Redistributor Achievements -------------- Batter Up Gunslinger Challenges ------------ None Game ------ Seed RecyclingStorageChip Manual? 0 Play Time 04:44:11 Cumulative 1174.2 hours Start 2020.10.31 @ 16:47:26 End 2020.11.01 @ 00:00:13 Sessions 3 Manual Loads 0 Difficulty Rogue Special Mode Halloween2020/ForbiddenLore Game No. 429 Rogue 429 Adventurer 0 Explorer 0 Win Type - Total 26 Types 13/2/7/0/0/0/4/0/0 Lore% 96 Gallery% 96 Achievement% 85 Wizard Run 0 Options --------- ASCII 0 Keyboard 0 Movement Vi Keybinds 0 Fullscreen 0 Font 12/Crisp Map View 76x50 Tactical HUD 1 Map Filters NONE Filters NONE Steam 1 RUN: 7b475f31-adda-473e-81ed-6f6a30174643